fUSD/lending_fUSD_20240629
["ID","MTS","AMOUNT","RATE_DAILY","PERIOD"]
[330648032,1719685847356,-151.0,0.00013963,2]
[330648033,1719685847366,-151.0,0.00013963,2]
[330648034,1719685847376,-500.0,0.00013986,2]
[330648035,1719685847387,-1495.02,0.00013986,2]
[330648036,1719685847398,-153.950949,0.00013987,2]
[330648037,1719685847409,-151.0,0.00013987,2]
[330648038,1719685847419,-5391.1300921,0.00013987,2]
[330648039,1719685847428,-10865.9475855,0.00013987,2]
[330648040,1719685847438,-80625.1804565,0.00013987,2]
[330648041,1719685847448,-150.0,0.00013991,2]
[330648042,1719685847459,-1950.8,0.00013991,3]
[330648043,1719685847470,-2796.51,0.00013991,3]
[330648044,1719685847479,-584.56,0.00013991,3]
[330648045,1719685847490,-2570.63,0.00013991,3]
[330648046,1719685847499,-3613.51,0.00013991,3]
[330648047,1719685847510,-500.0,0.00013991,3]
[330648048,1719685847520,-1179.91,0.00013991,3]
[330648049,1719685847679,-898.0,0.00013991,3]
[330648050,1719685847691,-582.76,0.00013991,3]
[330648051,1719685847702,-3235.37,0.00013991,3]
[330648052,1719685847711,-859.07,0.00013991,3]
[330648053,1719685847721,-2718.72,0.00013991,3]
[330648054,1719685847731,-1620.39,0.00013991,3]
[330648055,1719685847740,-631.08,0.00013991,3]
[330648056,1719685847754,-500.0,0.00013991,3]
[330648057,1719685847764,-1032.28,0.00013991,3]
[330648058,1719685847775,-2682.49,0.00013991,3]
[330648059,1719685847784,-1506.87,0.00013992,3]
[330648060,1719685847794,-2018.76,0.00013992,3]
[330648061,1719685847804,-1073.32,0.00013992,3]
[330648062,1719685847814,-2633.82,0.00013992,3]
[330648063,1719685847825,-1513.65,0.00013992,3]
[330648064,1719685847835,-781.35,0.00013992,3]
[330648065,1719685847845,-945.51,0.00013992,3]
[330648066,1719685847854,-1540.84,0.00013992,3]
[330648067,1719685847874,-222.25249649,0.00013992,3]
[330648068,1719685847883,-1410.58,0.00013992,3]
[330648069,1719685847893,-552.52,0.00013992,3]
[330648070,1719685847903,-1299.4,0.00013992,3]
[330648071,1719685847912,-1612.97,0.00013992,3]
[330648072,1719685847921,-2397.54,0.00013992,3]
[330648073,1719685847931,-1256.75,0.00013992,3]
[330648074,1719685847940,-1410.89,0.00013992,3]
[330648075,1719685847952,-2499.19,0.00013992,3]
[330648076,1719685847961,-1776.06,0.00013992,3]
[330648077,1719685847971,-543.62,0.00013992,3]
[330648078,1719685847980,-1616.06,0.00013992,3]
[330648079,1719685847989,-500.0,0.00013992,3]
[330648080,1719685847998,-910.17,0.00013992,3]
[330648081,1719685848007,-2365.38,0.00013992,3]
[330648082,1719685848016,-1857.67,0.00013992,3]
[330648083,1719685848025,-2453.9,0.00013992,3]
[330648084,1719685848034,-2140.71,0.00013992,3]
[330648085,1719685848044,-500.0,0.00013992,3]
[330648086,1719685848053,-500.0,0.00013992,3]
[330648087,1719685848063,-500.0,0.00013992,3]
[330648088,1719685848072,-564.18,0.00013992,3]
[330648089,1719685848082,-1144.64,0.00013992,3]
[330648090,1719685848091,-2199.19,0.00013992,3]
[330648091,1719685848100,-972.9,0.00013992,3]
[330648092,1719685848110,-1757.31,0.00013992,3]
[330648093,1719685848122,-1383.25,0.00013992,3]
[330648094,1719685848131,-500.0,0.00013992,3]
[330648095,1719685848141,-1921.47,0.00013992,3]
[330648096,1719685848150,-1348.38,0.00013992,3]
[330648097,1719685848159,-500.0,0.00013992,3]
[330648098,1719685848168,-577.23,0.00013992,3]
[330648099,1719685848178,-972.57,0.00013992,3]
[330648100,1719685848187,-500.0,0.00013992,3]
[330648101,1719685848197,-500.0,0.00013992,3]
[330648102,1719685848206,-845.33,0.00013992,3]
[330648103,1719685848215,-500.0,0.00013992,3]
[330648104,1719685848224,-2258.52,0.00013992,3]
[330648105,1719685848233,-567.65,0.00013992,3]
[330648106,1719685848242,-500.0,0.00013992,3]
[330648107,1719685848251,-1264.73,0.00013992,3]
[330648108,1719685848261,-2012.59,0.00013992,3]
[330648109,1719685848270,-1799.3,0.00013992,3]
[330648110,1719685848280,-500.0,0.00013992,3]
[330648111,1719685848289,-500.0,0.00013992,3]
[330648112,1719685848299,-2044.03,0.00013992,3]
[330648113,1719685848308,-4741.51,0.00013992,3]
[330648114,1719685848318,-1400.72,0.00013992,3]
[330648115,1719685848328,-1774.97,0.00013992,3]
[330648116,1719685848337,-1169.65,0.00013992,3]
[330648117,1719685848347,-11575.75,0.00013992,3]
[330648118,1719685848356,-2119.09,0.00013992,3]
[330648119,1719685848366,-763.09,0.00013992,3]
[330648120,1719685848375,-500.0,0.00013992,3]
[330648121,1719685848385,-23564.18,0.00013992,3]
[330648122,1719685848395,-977.35,0.00013992,3]
[330648123,1719685848404,-500.0,0.00013992,3]
[330648124,1719685848414,-1009.49,0.00013992,3]
[330648125,1719685848423,-3045.72,0.00013992,3]
[330648126,1719685848432,-1447.06,0.00013992,3]
[330648127,1719685848441,-2413.82,0.00013992,3]
[330648128,1719685848451,-2152.75,0.00013992,3]
[330648129,1719685848461,-3277.03,0.00013992,3]
[330648130,1719685848471,-1446.63,0.00013992,3]
[330648131,1719685848480,-1005.16,0.00013992,3]
[330648132,1719685848490,-500.0,0.00013992,3]
[330648133,1719685848500,-6207.78,0.00013992,3]
[330648134,1719685848509,-1386.12,0.00013992,3]
[330648135,1719685848519,-1776.37,0.00013992,3]
[330648136,1719685848530,-1206.04,0.00013992,3]
[330648137,1719685848539,-589.9,0.00013992,3]
[330648138,1719685848551,-151.0,0.00013992,2]
[330648139,1719685848560,-920.72,0.00013992,3]
[330648140,1719685848569,-151.0,0.00013992,2]
[330648141,1719685848580,-5223.24,0.00013992,3]
[330648142,1719685848590,-197.403423,0.00013992,2]
[330648143,1719685848600,-3691.93,0.00013992,3]
[330648144,1719685848609,-197.403423,0.00013992,2]
[330648145,1719685848619,-511.37,0.00013992,3]
[330648146,1719685848628,-3954.42,0.00013992,3]
[330648147,1719685848638,-611.49,0.00013992,3]
[330648148,1719685848647,-1175.62,0.00013992,3]
[330648149,1719685848657,-500.0,0.00013993,3]
[330648150,1719685848666,-555.84,0.00013993,3]
[330648151,1719685848676,-1175.66,0.00013993,3]
[330648152,1719685848686,-714.54,0.00013993,3]
[330648153,1719685848696,-500.0,0.00013993,3]
[330648154,1719685848706,-911.13,0.00013993,3]
[330648155,1719685848715,-902.21,0.00013993,3]
[330648156,1719685848725,-500.0,0.00013993,3]
[330648157,1719685848735,-500.0,0.00013993,3]
[330648158,1719685848745,-500.0,0.00013993,3]
[330648159,1719685848755,-500.0,0.00013993,3]
[330648160,1719685848765,-500.0,0.00013993,3]
[330648161,1719685848774,-1185.12,0.00013993,3]
[330648162,1719685848784,-500.0,0.00013993,3]
[330648163,1719685848793,-784.21,0.00013993,3]
[330648164,1719685848810,-921.59,0.00013993,3]
[330648165,1719685848823,-1093.55,0.00013993,3]
[330648166,1719685848837,-500.0,0.00013993,3]
[330648167,1719685848847,-500.0,0.00013993,3]
[330648168,1719685848864,-500.0,0.00013993,3]
[330648169,1719685848878,-500.0,0.00013993,3]
[330648170,1719685848889,-500.0,0.00013993,3]
[330648171,1719685848899,-500.0,0.00013993,3]
[330648172,1719685848911,-500.0,0.00013993,3]
[330648173,1719685848920,-1527.56,0.00013993,3]
[330648174,1719685848930,-741.64,0.00013993,3]
[330648175,1719685848941,-1163.76,0.00013993,3]
[330648176,1719685848952,-500.0,0.00013993,3]
[330648177,1719685848962,-500.0,0.00013993,3]
[330648178,1719685848971,-500.0,0.00013993,3]
[330648179,1719685848981,-500.0,0.00013993,3]
[330648180,1719685848991,-500.0,0.00013993,3]
[330648181,1719685849000,-500.0,0.00013993,3]
[330648182,1719685849010,-500.0,0.00013993,3]
[330648183,1719685849019,-484.54499832,0.00013993,3]
[330648184,1719685849030,-500.0,0.00013993,3]
[330648185,1719685849041,-500.0,0.00013993,3]
[330648186,1719685849051,-500.0,0.00013993,3]
[330648187,1719685849060,-892.84,0.00013993,3]
[330648188,1719685849070,-500.0,0.00013993,3]
[330648189,1719685849082,-500.0,0.00013993,3]
[330648190,1719685849092,-500.0,0.00013993,3]
[330648191,1719685849102,-683.65,0.00013993,3]
[330648192,1719685849111,-612.04,0.00013993,3]
[330648193,1719685849122,-500.0,0.00013993,3]
[330648194,1719685849131,-500.0,0.00013993,3]
[330648195,1719685849141,-555.95,0.00013993,3]
[330648196,1719685849150,-803.24,0.00013993,3]
[330648197,1719685849160,-500.0,0.00013993,3]
[330648198,1719685849170,-1524.36,0.00013993,3]
[330648199,1719685849180,-774.08,0.00013993,3]
[330648200,1719685849189,-500.0,0.00013993,3]
[330648201,1719685849199,-1160.93,0.00013993,3]
[330648202,1719685849208,-500.0,0.00013993,3]
[330648203,1719685849217,-1554.9,0.00013993,3]
[330648204,1719685849228,-500.0,0.00013993,3]
[330648205,1719685849238,-503.02227744,0.00013993,3]
[330648206,1719685849249,-1327.59,0.00013993,3]
[330648207,1719685849259,-500.0,0.00013993,3]
[330648208,1719685849269,-500.0,0.00013993,3]
[330648209,1719685849279,-500.0,0.00013993,3]
[330648210,1719685849288,-1302.83,0.00013993,3]
[330648211,1719685849298,-1472.4,0.00013993,3]
[330648212,1719685849307,-500.0,0.00013993,3]
[330648213,1719685849316,-500.0,0.00013993,3]
[330648214,1719685849330,-500.0,0.00013993,3]
[330648215,1719685849339,-1702.17,0.00013993,3]
[330648216,1719685849350,-500.0,0.00013993,3]
[330648217,1719685849359,-2015.59,0.00013993,3]
[330648218,1719685849368,-500.0,0.00013993,3]
[330648219,1719685849378,-814.16,0.00013993,3]
[330648220,1719685849388,-500.0,0.00013993,3]
[330648221,1719685849397,-653.99,0.00013993,3]
[330648222,1719685849407,-500.0,0.00013993,3]
[330648223,1719685849417,-500.0,0.00013993,3]
[330648224,1719685849427,-500.0,0.00013993,3]
[330648225,1719685849437,-500.0,0.00013993,3]
[330648226,1719685849446,-844.87,0.00013993,3]
[330648227,1719685849456,-500.0,0.00013993,3]
[330648228,1719685849466,-1623.66,0.00013993,3]
[330648229,1719685849475,-500.0,0.00013993,3]
[330648230,1719685849485,-603.32,0.00013993,3]
[330648231,1719685849494,-732.14,0.00013993,3]
[330648232,1719685849503,-500.0,0.00013993,3]
[330648233,1719685849513,-500.0,0.00013993,3]
[330648234,1719685849522,-641.41,0.00013993,3]
[330648235,1719685849531,-500.0,0.00013993,3]
[330648236,1719685849541,-1008.48,0.00013993,3]
[330648237,1719685849550,-1578.87,0.00013993,3]
[330648238,1719685849559,-500.0,0.00013993,3]
[330648239,1719685849570,-1542.56,0.00013993,3]
[330648240,1719685849580,-1365.28,0.00013993,3]
[330648241,1719685849590,-565.35,0.00013993,3]
[330648242,1719685849599,-500.0,0.00013993,3]
[330648243,1719685849608,-161.938514,0.00013993,2]
[330648244,1719685849618,-500.0,0.00013993,3]
[330648245,1719685849627,-2508.88,0.00013993,3]
[330648246,1719685849637,-161.938514,0.00013993,2]
[330648247,1719685849646,-548.89,0.00013993,3]
[330648248,1719685849656,-2443.58,0.00013993,3]
[330648249,1719685849665,-500.0,0.00013993,3]
[330648250,1719685849675,-2962.61,0.00013993,3]
[330648251,1719685849688,-500.0,0.00013993,3]
[330648252,1719685849698,-1489.16,0.00013993,3]
[330648253,1719685849708,-602.24,0.00013993,3]
[330648254,1719685849718,-545.65,0.00013993,3]
[330648255,1719685849728,-601.6,0.00013993,3]
[330648256,1719685849737,-500.0,0.00013993,3]
[330648257,1719685849747,-664.14,0.00013993,3]
[330648258,1719685849756,-500.0,0.00013993,3]
[330648259,1719685849766,-645.12,0.00013993,3]
[330648260,1719685849775,-500.0,0.00013993,3]
[330648261,1719685849785,-500.0,0.00013993,3]
[330648262,1719685849795,-1389.86,0.00013993,3]
[330648263,1719685849804,-500.0,0.00013993,3]
[330648264,1719685849814,-597.27,0.00013993,3]
[330648265,1719685849823,-500.0,0.00013993,3]
[330648266,1719685849834,-500.0,0.00013993,3]
[330648267,1719685849843,-500.0,0.00013993,3]
[330648268,1719685849852,-500.0,0.00013993,3]
[330648269,1719685849863,-644.8,0.00013993,3]
[330648270,1719685849875,-1363.9,0.00013993,3]
[330648271,1719685849884,-1225.28,0.00013993,3]
[330648272,1719685849895,-635.4,0.00013993,3]
[330648273,1719685849906,-1995.38,0.00013993,3]
[330648274,1719685849916,-500.0,0.00013993,3]
[330648275,1719685849925,-500.0,0.00013993,3]
[330648276,1719685849935,-2158.26,0.00013993,3]
[330648277,1719685849945,-500.0,0.00013993,3]
[330648278,1719685849954,-578.08,0.00013993,3]
[330648279,1719685849965,-500.0,0.00013993,3]
[330648280,1719685849974,-500.0,0.00013993,3]
[330648281,1719685849983,-289.95007,0.00013993,2]
[330648282,1719685849993,-705.02,0.00013993,3]
[330648283,1719685850002,-500.0,0.00013993,3]
[330648284,1719685850011,-500.0,0.00013993,3]
[330648285,1719685850021,-729.37,0.00013993,3]
[330648286,1719685850030,-151.0,0.00013993,2]
[330648287,1719685850040,-500.0,0.00013993,3]
[330648288,1719685850049,-500.0,0.00013993,3]
[330648289,1719685850058,-571.58,0.00013993,3]
[330648290,1719685850068,-500.0,0.00013993,3]
[330648291,1719685850079,-569.54017875,0.00013993,3]
[330648292,1719685850089,-636.0080231,0.00013993,3]
[330648293,1719685850099,-500.0,0.00013993,3]
[330648294,1719685850109,-500.0,0.00013993,3]
[330648295,1719685850118,-2653.62,0.00013993,3]
[330648296,1719685850127,-708.45,0.00013993,3]
[330648297,1719685850137,-171.69792797,0.00013993,3]
[330648298,1719685850147,-1014.66,0.00013993,3]
[330648299,1719685850156,-1009.26,0.00013993,3]
[330648300,1719685850165,-832.04889298,0.00013993,3]
[330648301,1719685850175,-2133.84,0.00013993,3]
[330648302,1719685850185,-500.0,0.00013993,3]
[330648303,1719685850194,-500.0,0.00013993,3]
[330648304,1719685850204,-1550.59,0.00013993,3]
[330648305,1719685850213,-1060.14,0.00013993,3]
[330648306,1719685850223,-1616.0,0.00013993,3]
[330648307,1719685850232,-500.0,0.00013993,3]
[330648308,1719685850241,-500.0,0.00013993,3]
[330648309,1719685850251,-592.85,0.00013993,3]
[330648310,1719685850260,-741.67,0.00013993,3]
[330648311,1719685850270,-1189.71,0.00013993,3]
[330648312,1719685850280,-568.49,0.00013993,3]
[330648313,1719685850290,-1302.06,0.00013993,3]
[330648314,1719685850300,-3971.3,0.00013993,3]
[330648315,1719685850309,-618.2,0.00013993,3]
[330648316,1719685850319,-2329.81,0.00013993,3]
[330648317,1719685850329,-1189.17,0.00013993,3]
[330648318,1719685850339,-151.0,0.00013993,2]
[330648319,1719685850348,-1110.06,0.00013993,3]
[330648320,1719685850358,-500.0,0.00013993,3]
[330648321,1719685850367,-500.0,0.00013993,3]
[330648322,1719685850377,-1531.76,0.00013993,3]
[330648323,1719685850386,-500.0,0.00013993,3]
[330648324,1719685850396,-500.0,0.00013993,3]
[330648325,1719685850405,-1516.23,0.00013993,3]
[330648326,1719685850414,-922.6,0.00013993,3]
[330648327,1719685850424,-2065.55,0.00013993,3]
[330648328,1719685850433,-572.60003672,0.00013993,3]
[330648329,1719685850443,-1042.59,0.00013993,3]
[330648330,1719685850453,-2359.0,0.00013993,3]
[330648331,1719685850462,-500.0,0.00013993,3]
[330648332,1719685850472,-500.0,0.00013993,3]
[330648333,1719685850481,-500.0,0.00013993,3]
[330648334,1719685850490,-500.0,0.00013993,3]
[330648335,1719685850500,-500.0,0.00013993,3]
[330648336,1719685850509,-1208.43,0.00013993,3]
[330648337,1719685850519,-657.6,0.00013993,3]
[330648338,1719685850528,-1835.88,0.00013993,3]
[330648339,1719685850541,-561.07,0.00013993,3]
[330648340,1719685850551,-678.79,0.00013993,3]
[330648341,1719685850561,-653.11,0.00013993,3]
[330648342,1719685850570,-1167.98,0.00013993,3]
[330648343,1719685850580,-1565.05,0.00013993,3]
[330648344,1719685850590,-716.59,0.00013993,3]
[330648345,1719685850599,-2265.64,0.00013993,3]
[330648346,1719685850609,-1999.77,0.00013993,3]
[330648347,1719685850619,-1494.41,0.00013993,3]
[330648348,1719685850629,-500.0,0.00013993,3]
[330648349,1719685850638,-6457.05,0.00013993,3]
[330648350,1719685850648,-500.0,0.00013993,3]
[330648351,1719685850658,-1060.23,0.00013993,3]
[330648352,1719685850668,-500.0,0.00013993,3]
[330648353,1719685850677,-500.0,0.00013993,3]
[330648354,1719685850687,-500.0,0.00013993,3]
[330648355,1719685850697,-500.0,0.00013993,3]
[330648356,1719685850707,-1851.56,0.00013993,3]
[330648357,1719685850717,-500.0,0.00013993,3]
[330648358,1719685850726,-1179.9,0.00013993,3]
[330648359,1719685850736,-151.0,0.00013993,2]
[330648360,1719685850745,-500.0,0.00013993,3]
[330648361,1719685850755,-500.0,0.00013993,3]
[330648362,1719685850765,-8650.05,0.00013993,3]
[330648363,1719685850775,-569.82,0.00013993,3]
[330648364,1719685850784,-993.75,0.00013993,3]
[330648365,1719685850794,-1517.44,0.00013993,3]
[330648366,1719685850803,-1162.62,0.00013993,3]
[330648367,1719685850812,-540.63,0.00013993,3]
[330648368,1719685850822,-780.4,0.00013993,3]
[330648369,1719685850832,-500.0,0.00013993,3]
[330648370,1719685850842,-677.82,0.00013993,3]
[330648371,1719685850852,-500.0,0.00013993,3]
[330648372,1719685850863,-500.0,0.00013993,3]
[330648373,1719685850876,-3026.14,0.00013993,3]
[330648374,1719685850886,-500.0,0.00013993,3]
[330648375,1719685850899,-203.16,0.00013993,3]
[330648376,1719685850910,-500.0,0.00013993,3]
[330648377,1719685850920,-1069.14,0.00013993,3]
[330648378,1719685850930,-774.21,0.00013993,3]
[330648379,1719685850940,-500.0,0.00013993,3]
[330648380,1719685850951,-1478.31,0.00013993,3]
[330648381,1719685850961,-3537.59,0.00013993,3]
[330648382,1719685850970,-1056.17,0.00013993,3]
[330648383,1719685850980,-2115.0,0.00013993,3]
[330648384,1719685850991,-1091.18,0.00013993,3]
[330648385,1719685851001,-5095.9,0.00013993,3]
[330648386,1719685851010,-1275.82,0.00013993,3]
[330648387,1719685851019,-850.84,0.00013993,3]
[330648388,1719685851029,-500.0,0.00013993,3]
[330648389,1719685851038,-2408.66,0.00013993,3]
[330648390,1719685851047,-533.25,0.00013993,3]
[330648391,1719685851056,-500.0,0.00013993,3]
[330648392,1719685851065,-1191.77,0.00013993,3]
[330648393,1719685851074,-6390.83,0.00013993,3]
[330648394,1719685851084,-500.0,0.00013993,3]
[330648395,1719685851093,-517.87,0.00013993,3]
[330648396,1719685851102,-354.57876287,0.00013993,3]
[330648397,1719685851112,-500.0,0.00013993,3]
[330648398,1719685851121,-2007.89,0.00013993,3]
[330648399,1719685851130,-500.0,0.00013993,3]
[330648400,1719685851140,-532.7,0.00013993,3]
[330648401,1719685851149,-1763.32,0.00013993,3]
[330648402,1719685851158,-854.71,0.00013993,3]
[330648403,1719685851167,-1537.52,0.00013993,3]
[330648404,1719685851178,-2165.92,0.00013993,3]
[330648405,1719685851187,-1078.11,0.00013993,3]
[330648406,1719685851197,-500.0,0.00013993,3]
[330648407,1719685851207,-500.0,0.00013993,3]
[330648408,1719685851217,-500.0,0.00013993,3]
[330648409,1719685851227,-1117.65,0.00013993,3]
[330648410,1719685851241,-1071.42,0.00013993,3]
[330648411,1719685851251,-804.53,0.00013993,3]
[330648412,1719685851260,-1345.59,0.00013993,3]
[330648413,1719685851270,-1424.43,0.00013993,3]
[330648414,1719685851280,-500.0,0.00013993,3]
[330648415,1719685851289,-500.0,0.00013993,3]
[330648416,1719685851299,-500.0,0.00013993,3]
[330648417,1719685851308,-2137.26,0.00013993,3]
[330648418,1719685851319,-500.0,0.00013993,3]
[330648419,1719685851328,-735.43,0.00013993,3]
[330648420,1719685851338,-500.0,0.00013993,3]
[330648421,1719685851347,-500.0,0.00013993,3]
[330648422,1719685851357,-1176.77,0.00013993,3]
[330648423,1719685851366,-1199.96,0.00013993,3]
[330648424,1719685851376,-195.83137279,0.00013993,3]
[330648425,1719685851385,-1599.24,0.00013993,3]
[330648426,1719685851395,-500.0,0.00013993,3]
[330648427,1719685851404,-527.21,0.00013993,3]
[330648428,1719685851414,-150.0,0.00013994,2]
[330648429,1719685851423,-724.2,0.00013995,3]
[330648430,1719685851433,-711.26,0.00013995,3]
[330648431,1719685851442,-611.1035756,0.00013995,3]
[330648432,1719685851451,-500.0,0.00013995,3]
[330648433,1719685851461,-1258.0,0.00013995,3]
[330648434,1719685851471,-500.0,0.00013995,3]
[330648435,1719685851481,-500.0,0.00013995,3]
[330648436,1719685851491,-515.35,0.00013995,3]
[330648437,1719685851501,-588.35,0.00013995,3]
[330648438,1719685851512,-500.0,0.00013995,3]
[330648439,1719685851521,-500.0,0.00013995,3]
[330648440,1719685851531,-500.0,0.00013995,3]
[330648441,1719685851541,-798.59,0.00013995,3]
[330648442,1719685851550,-500.0,0.00013995,3]
[330648443,1719685851560,-500.0,0.00013995,3]
[330648444,1719685851569,-878.39,0.00013995,3]
[330648445,1719685851580,-519.68,0.00013995,3]
[330648446,1719685851590,-500.0,0.00013995,3]
[330648447,1719685851599,-500.0,0.00013995,3]
[330648448,1719685851609,-500.0,0.00013995,3]
[330648449,1719685851619,-689.9,0.00013995,3]
[330648450,1719685851628,-652.84,0.00013995,3]
[330648451,1719685851637,-500.0,0.00013995,3]
[330648452,1719685851647,-571.66,0.00013995,3]
[330648453,1719685851657,-500.0,0.00013995,3]
[330648454,1719685851666,-500.0,0.00013995,3]
[330648455,1719685851676,-1504.11,0.00013995,3]
[330648456,1719685851687,-500.0,0.00013995,3]
[330648457,1719685851696,-500.0,0.00013995,3]
[330648458,1719685851705,-1492.78,0.00013995,3]
[330648459,1719685851715,-511.73,0.00013995,3]
[330648460,1719685851725,-641.88,0.00013995,3]
[330648461,1719685851735,-497.5800367,0.00013995,3]
[330648462,1719685851744,-625.07,0.00013995,3]
[330648463,1719685851754,-605.32,0.00013995,3]
[330648464,1719685851763,-500.0,0.00013995,3]
[330648465,1719685851774,-500.0,0.00013995,3]
[330648466,1719685851783,-2500.0,0.00013995,3]
[330648467,1719685851793,-500.0,0.00013995,3]
[330648468,1719685851802,-1127.84,0.00013995,3]
[330648469,1719685851811,-500.0,0.00013995,3]
[330648470,1719685851821,-500.0,0.00013995,3]
[330648471,1719685851832,-955.69,0.00013995,3]
[330648472,1719685851841,-159.49253397,0.00013995,3]
[330648473,1719685851851,-500.0,0.00013995,3]
[330648474,1719685851863,-500.0,0.00013995,3]
[330648475,1719685852080,-500.0,0.00013995,3]
[330648476,1719685852092,-500.0,0.00013995,3]
[330648477,1719685852101,-639.02,0.00013995,3]
[330648478,1719685852111,-500.0,0.00013995,3]
[330648479,1719685852120,-785.3,0.00013995,3]
[330648480,1719685852130,-519.74,0.00013995,3]
[330648481,1719685852139,-1427.24,0.00013995,3]
[330648482,1719685852148,-500.0,0.00013995,3]
[330648483,1719685852158,-936.96,0.00013995,3]
[330648484,1719685852167,-189.4812981,0.00013995,2]
[330648485,1719685852176,-1036.11,0.00013995,3]
[330648486,1719685852185,-500.0,0.00013995,3]
[330648487,1719685852194,-500.0,0.00013995,3]
[330648488,1719685852203,-500.0,0.00013995,3]
[330648489,1719685852213,-250.0,0.00013995,3]
[330648490,1719685852222,-500.0,0.00013995,3]
[330648491,1719685852231,-500.0,0.00013995,3]
[330648492,1719685852240,-500.0,0.00013995,3]
[330648493,1719685852249,-1327.37,0.00013995,3]
[330648494,1719685852259,-658.05,0.00013995,3]
[330648495,1719685852269,-1616.07,0.00013995,3]
[330648496,1719685852280,-500.0,0.00013995,3]
[330648497,1719685852289,-500.0,0.00013995,3]
[330648498,1719685852299,-500.0,0.00013995,3]
[330648499,1719685852308,-1549.23,0.00013995,3]
[330648500,1719685852318,-500.0,0.00013995,3]
[330648501,1719685852329,-500.0,0.00013995,3]
[330648502,1719685852340,-500.0,0.00013995,3]
[330648503,1719685852349,-836.11,0.00013995,3]
[330648504,1719685852359,-498.69999999,0.00013995,3]
[330648505,1719685852368,-770.09,0.00013995,3]
[330648506,1719685852377,-756.19,0.00013995,3]
[330648507,1719685852386,-516.91,0.00013995,3]
[330648508,1719685852396,-1297.51,0.00013995,3]
[330648509,1719685852405,-500.0,0.00013995,3]
[330648510,1719685852414,-500.0,0.00013995,3]
[330648511,1719685852425,-500.0,0.00013995,3]
[330648512,1719685852435,-500.0,0.00013995,3]
[330648513,1719685852447,-500.0,0.00013995,3]
[330648514,1719685852458,-1685.5,0.00013995,3]
[330648515,1719685852467,-161.938514,0.00013995,2]
[330648516,1719685852478,-500.0,0.00013995,3]
[330648517,1719685852487,-1389.67,0.00013995,3]
[330648518,1719685852496,-161.938514,0.00013995,2]
[330648519,1719685852506,-500.0,0.00013995,3]
[330648520,1719685852515,-500.0,0.00013995,3]
[330648521,1719685852525,-500.0,0.00013995,3]
[330648522,1719685852535,-1113.2,0.00013995,3]
[330648523,1719685852544,-1102.97,0.00013995,3]
[330648524,1719685852554,-500.0,0.00013995,3]
[330648525,1719685852563,-500.0,0.00013995,3]
[330648526,1719685852573,-500.0,0.00013995,3]
[330648527,1719685852583,-486.62866883,0.00013995,3]
[330648528,1719685852592,-632.56,0.00013995,3]
[330648529,1719685852602,-1461.27,0.00013995,3]
[330648530,1719685852611,-723.36,0.00013995,3]
[330648531,1719685852621,-500.0,0.00013995,3]